Workbook

Sheet ACI 318-Beam Design
E2: ACI 318M
B4: FLEXURAL STRENGTH
B6: Width (mm) | C6: 400 | E6: d (mm) | F6: =C7-C8 -> 560 | H6: Mn (kNm) | I6: =F8*(F7*C10*(F6-0.59*((F7*C10)/(C9*C6)))*10^-6) -> 313.2463737
B7: Height (mm) | C7: 600 | E7: Ast (mm2) | F7: =((PI()*B14^2/4)*C14)+((PI()*B15^2/4)*C15)+((PI()*B16^2/4)*C16) -> 1570.796327
B8: Cover (mm) | C8: 40 | E8: Reduc. Factor (ф) | F8: =IF(I11>0.005,0.9,IF(AND(I12<I11,I11<0.005),0.65+0.25*((I11-I12)/(0.005-I12)),IF(I11<I12,0.65," "))) -> 0.9 | H8: a (mm) | I8: =F7*C10/(0.85*C9*C6) -> 64.67984875
B9: fck (N/mm2) | C9: 30 | H9: β1 | I9: =IF(C9<=30,0.85,IF(C9=35,0.8,IF(C9=40,0.76," "))) -> 0.85
B10: fyk (N/mm2) | C10: 420 | E10: Classificaiton | F10: =IF(I11>0.005,"Tension-Controlled",IF(AND(I12<I11,I11<0.005),"Transition",IF(I11<I12,"Compression-Controlled"," "))) -> Tension-Controlled | H10: c (mm) | I10: =I8/I9 -> 76.09393971
H11: εt | I11: =0.003*(F6-I10)/I10 -> 0.01907797371
H12: εty | I12: =C10/200000 -> 0.0021
B13: ф (dia) | C13: n | E13: ρ | F13: =(F7)/(C6*F6) -> 0.007012483602
B14: 20 | C14: 5 | E14: ρmin | F14: =MIN(0.25*SQRT(C9)/C10,1.4/C10) -> 0.003260253318 | G14: =F13/F14 -> 2.150901454
B15: 0 | C15: 0 | E15: ρmax | F15: =0.025 -> 0.025 | G15: =F13/F15 -> 0.2804993441
B16: 0 | C16: 0 | E16: ρbalan | F16: =0.85*I9*(C9/C10)*(600/(600+C10)) -> 0.03035714286 | G16: =F13/F16 -> 0.2309994598
B19: SHEAR STRENGTH
B21: Stirrup Dia (ф ) | C21: 10 | E21: Vc (kN) | F21: =0.75*(0.17*SQRT(C9)*C6*F6)/1000 -> 156.4295624 | H21: Vn (kN) | I21: =F21+F22 -> 341.1552105
B22: Spacing (mm) | C22: 150 | E22: Vs (kN) | F22: =0.75*(C25*C10*F6/C22)/1000 -> 184.725648 | H22: Vn,max (kN) | I22: =0.75*(0.66*SQRT(C9)*C6*F6)/1000 -> 607.3147718
B23: No.of leg | C23: 2
B25: Av (mm2) | C25: =(C21^2*PI()/4)*C23 -> 157.0796327
B26: Av,min (mm2) | C26: =0.062*SQRT(C9)*C6*C22/C10 -> 48.51256938 | D26: =C25/C26 -> 3.237916167
